[Event "*** Titled Tuesday Blitz"]
[Site "Chess.com"]
[Date "2020.04.07"]
[Round "1"]
[White "awesomevishesh"]
[Black "rasmussvane"]
[Result "1-0"]
[WhiteElo "2476"]
[BlackElo "2860"]
[TimeControl "180+1"]
[EndTime "13:09:00 PDT"]
[Termination "awesomevishesh won on time"]

1. d4 {[%clk 0:02:57.2]} 1... d5 {[%clk 0:02:59.4]} 2. c4 {[%clk 0:02:56.8]}
2... e6 {[%clk 0:02:58.6]} 3. Nf3 {[%clk 0:02:56.6]} 3... a6 {[%clk 0:02:58.4]}
4. Nbd2 {[%clk 0:02:49.5]} 4... dxc4 {[%clk 0:02:56.6]} 5. Nxc4 {[%clk
0:02:49.2]} 5... b5 {[%clk 0:02:57.3]} 6. Nce5 {[%clk 0:02:47.9]} 6... Bb7
{[%clk 0:02:57.7]} 7. a4 {[%clk 0:02:39.8]} 7... Nd7 {[%clk 0:02:38.6]} 8. Nxd7
{[%clk 0:02:29.4]} 8... Qxd7 {[%clk 0:02:39.5]} 9. Ne5 {[%clk 0:02:27.6]} 9...
Bb4+ {[%clk 0:02:37.4]} 10. Bd2 {[%clk 0:02:22.6]} 10... Qxd4 {[%clk 0:02:37.6]}
11. Nd3 {[%clk 0:02:07]} 11... Bxd2+ {[%clk 0:02:32.2]} 12. Qxd2 {[%clk
0:02:07]} 12... Nf6 {[%clk 0:02:33.1]} 13. e3 {[%clk 0:02:04.2]} 13... Qd6
{[%clk 0:02:31.4]} 14. axb5 {[%clk 0:02:03.8]} 14... axb5 {[%clk 0:02:30.9]} 15.
Rxa8+ {[%clk 0:02:03.4]} 15... Bxa8 {[%clk 0:02:31.8]} 16. Qa5 {[%clk
0:02:00.7]} 16... O-O {[%clk 0:02:11.6]} 17. Qxb5 {[%clk 0:01:46.4]} 17... Rd8
{[%clk 0:01:38.8]} 18. f3 {[%clk 0:01:25]} 18... Bc6 {[%clk 0:01:04.7]} 19. Qb4
{[%clk 0:01:16.4]} 19... Qd7 {[%clk 0:00:56]} 20. Be2 {[%clk 0:01:10.1]} 20...
Nd5 {[%clk 0:00:46.2]} 21. Qc5 {[%clk 0:01:05.1]} 21... Qd6 {[%clk 0:00:31.4]}
22. Qxd6 {[%clk 0:00:40.3]} 22... cxd6 {[%clk 0:00:32.3]} 23. e4 {[%clk
0:00:37.2]} 23... Nb6 {[%clk 0:00:25.7]} 24. Nb4 {[%clk 0:00:29.2]} 24... Be8
{[%clk 0:00:23.1]} 25. Kd2 {[%clk 0:00:28.9]} 25... Kf8 {[%clk 0:00:23.3]} 26.
Rc1 {[%clk 0:00:28.2]} 26... Rb8 {[%clk 0:00:22.8]} 27. Nd3 {[%clk 0:00:22.3]}
27... Ke7 {[%clk 0:00:20.5]} 28. b4 {[%clk 0:00:21.7]} 28... Kd8 {[%clk
0:00:19.9]} 29. f4 {[%clk 0:00:20.8]} 29... Bb5 {[%clk 0:00:19.8]} 30. Nb2
{[%clk 0:00:08.5]} 30... Bd7 {[%clk 0:00:19.6]} 31. Nd3 {[%clk 0:00:08.1]} 31...
Bc8 {[%clk 0:00:18.3]} 32. Nb2 {[%clk 0:00:07.2]} 32... Nd7 {[%clk 0:00:18.2]}
33. b5 {[%clk 0:00:07.3]} 33... Nc5 {[%clk 0:00:17.9]} 34. Ke3 {[%clk
0:00:07.3]} 34... Bd7 {[%clk 0:00:15.3]} 35. Nc4 {[%clk 0:00:06.9]} 35... Ke7
{[%clk 0:00:14.4]} 36. Na5 {[%clk 0:00:06.2]} 36... Rb6 {[%clk 0:00:09]} 37. Rb1
{[%clk 0:00:05.7]} 37... f6 {[%clk 0:00:08.4]} 38. Kd4 {[%clk 0:00:05]} 38...
e5+ {[%clk 0:00:08.2]} 39. fxe5 {[%clk 0:00:05.5]} 39... fxe5+ {[%clk
0:00:09.1]} 40. Ke3 {[%clk 0:00:06.1]} 40... Be6 {[%clk 0:00:09.4]} 41. Rb2
{[%clk 0:00:05.7]} 41... Kd7 {[%clk 0:00:09.4]} 42. Bc4 {[%clk 0:00:05.9]} 42...
Bg4 {[%clk 0:00:05.7]} 43. Bf1 {[%clk 0:00:05.5]} 43... Kc7 {[%clk 0:00:05.6]}
44. Nc4 {[%clk 0:00:05.3]} 44... Rb8 {[%clk 0:00:05.7]} 45. b6+ {[%clk
0:00:05.7]} 45... Kd7 {[%clk 0:00:06]} 46. Rd2 {[%clk 0:00:05.6]} 46... Nb7
{[%clk 0:00:03]} 47. Nxe5+ {[%clk 0:00:05.7]} 47... Ke7 {[%clk 0:00:01.7]} 48.
Nxg4 {[%clk 0:00:06.1]} 48... Nc5 {[%clk 0:00:02.6]} 49. Rb2 {[%clk 0:00:06.1]}
49... Na4 {[%clk 0:00:02.5]} 50. Rb4 {[%clk 0:00:05.7]} 50... Nxb6 {[%clk
0:00:03]} 51. Kd4 {[%clk 0:00:06]} 51... Kd7 {[%clk 0:00:02.5]} 52. Ne3 {[%clk
0:00:06.2]} 52... Kc7 {[%clk 0:00:02.9]} 53. Nd5+ {[%clk 0:00:05.4]} 53... Nxd5
{[%clk 0:00:03.4]} 54. Rxb8 {[%clk 0:00:05.7]} 54... Ne7 {[%clk 0:00:04.3]} 55.
Rh8 {[%clk 0:00:05.2]} 55... h6 {[%clk 0:00:03.6]} 56. Bd3 {[%clk 0:00:05.2]}
56... Kd7 {[%clk 0:00:03.5]} 57. Rh7 {[%clk 0:00:05.1]} 57... g5 {[%clk
0:00:03.1]} 58. e5 {[%clk 0:00:04.8]} 58... Ke6 {[%clk 0:00:02.8]} 59. exd6
{[%clk 0:00:04.3]} 59... Kxd6 {[%clk 0:00:03.7]} 60. Be4 {[%clk 0:00:04.5]}
60... Ng8 {[%clk 0:00:01.9]} 61. Rg7 {[%clk 0:00:05]} 61... Nf6 {[%clk
0:00:02.1]} 62. Rg6 {[%clk 0:00:05.5]} 62... Ke7 {[%clk 0:00:02.6]} 63. Rxh6
{[%clk 0:00:06]} 63... Ng4 {[%clk 0:00:02.6]} 64. Rh5 {[%clk 0:00:05.7]} 64...
Kf6 {[%clk 0:00:01.7]} 65. h3 {[%clk 0:00:06.1]} 65... Nf2 {[%clk 0:00:02.2]}
66. Rh6+ {[%clk 0:00:05.7]} 66... Kf7 {[%clk 0:00:02.1]} 67. Ke5 {[%clk
0:00:04.8]} 1-0

[Event "*** Titled Tuesday Blitz"]
[Site "Chess.com"]
[Date "2020.04.07"]
[Round "1"]
[White "Oleg_Papayan"]
[Black "NewBornNow"]
[Result "1-0"]
[WhiteElo "2333"]
[BlackElo "2634"]
[TimeControl "180+1"]
[EndTime "13:09:03 PDT"]
[Termination "Oleg_Papayan won by resignation"]

1. e4 {[%clk 0:03:00.9]} 1... d6 {[%clk 0:02:58.8]} 2. d4 {[%clk 0:02:57.9]}
2... Nf6 {[%clk 0:02:59.2]} 3. Nc3 {[%clk 0:02:58.5]} 3... e5 {[%clk 0:02:59.6]}
4. Nge2 {[%clk 0:02:54.7]} 4... Nbd7 {[%clk 0:02:57]} 5. f3 {[%clk 0:02:54.6]}
5... c6 {[%clk 0:02:55.7]} 6. Be3 {[%clk 0:02:54.9]} 6... h5 {[%clk 0:02:54.6]}
7. Qd2 {[%clk 0:02:55]} 7... b5 {[%clk 0:02:54.1]} 8. a3 {[%clk 0:02:54.2]} 8...
Bb7 {[%clk 0:02:52.9]} 9. dxe5 {[%clk 0:02:22.8]} 9... dxe5 {[%clk 0:02:52]} 10.
Ng3 {[%clk 0:02:21.4]} 10... Qc7 {[%clk 0:02:46.9]} 11. O-O-O {[%clk 0:02:17.5]}
11... a5 {[%clk 0:02:41.8]} 12. Nf5 {[%clk 0:02:16.7]} 12... b4 {[%clk
0:02:39.8]} 13. Nb1 {[%clk 0:02:15.3]} 13... g6 {[%clk 0:02:32.5]} 14. Nd6+
{[%clk 0:02:15]} 14... Bxd6 {[%clk 0:02:31.9]} 15. Qxd6 {[%clk 0:02:15.9]} 15...
Qxd6 {[%clk 0:02:31.8]} 16. Rxd6 {[%clk 0:02:16.8]} 16... Ke7 {[%clk 0:02:31]}
17. Rd1 {[%clk 0:02:16.2]} 17... Ba6 {[%clk 0:02:24.4]} 18. Bxa6 {[%clk
0:02:12.1]} 18... Rxa6 {[%clk 0:02:24.1]} 19. Nd2 {[%clk 0:02:13]} 19... bxa3
{[%clk 0:02:22.6]} 20. bxa3 {[%clk 0:02:12.2]} 20... Rb8 {[%clk 0:02:18.1]} 21.
Nc4 {[%clk 0:02:11.9]} 21... Ne8 {[%clk 0:02:13]} 22. Rd3 {[%clk 0:02:05.6]}
22... f6 {[%clk 0:02:10.1]} 23. Rhd1 {[%clk 0:02:05.3]} 23... Rb7 {[%clk
0:02:09.7]} 24. g4 {[%clk 0:01:55.8]} 24... hxg4 {[%clk 0:02:06.9]} 25. fxg4
{[%clk 0:01:56.7]} 25... g5 {[%clk 0:02:06.5]} 26. Bf2 {[%clk 0:01:44.3]} 26...
a4 {[%clk 0:02:01.7]} 27. Rh3 {[%clk 0:01:38.7]} 27... Nf8 {[%clk 0:01:42.3]}
28. Bc5+ {[%clk 0:01:24.1]} 28... Kf7 {[%clk 0:01:42]} 29. Bxf8 {[%clk
0:01:23.4]} 29... Kxf8 {[%clk 0:01:42]} 30. Rh8+ {[%clk 0:01:24]} 30... Kf7
{[%clk 0:01:34.7]} 31. Rxe8 {[%clk 0:01:23.5]} 31... Kxe8 {[%clk 0:01:34.4]} 32.
Nd6+ {[%clk 0:01:23.7]} 32... Ke7 {[%clk 0:01:33.9]} 33. Nxb7 {[%clk 0:01:24.6]}
33... Rb6 {[%clk 0:01:32.1]} 34. Nc5 {[%clk 0:01:22.3]} 34... Rb5 {[%clk
0:01:30]} 35. Nd3 {[%clk 0:01:14.6]} 35... Rb8 {[%clk 0:01:26.1]} 36. Kd2 {[%clk
0:01:14.3]} 36... Rh8 {[%clk 0:01:25.5]} 37. Rh1 {[%clk 0:01:14]} 37... Rh3
{[%clk 0:01:24.3]} 38. Kc3 {[%clk 0:01:03.9]} 38... Kd6 {[%clk 0:01:17.7]} 39.
Kb4 {[%clk 0:01:01.3]} 39... Re3 {[%clk 0:01:14.7]} 40. Re1 {[%clk 0:01:01]}
40... c5+ {[%clk 0:01:13.8]} 41. Kxa4 {[%clk 0:00:57.2]} 41... Rh3 {[%clk
0:01:13.2]} 42. Re2 {[%clk 0:00:56.8]} 42... c4 {[%clk 0:01:12.3]} 43. Nb4
{[%clk 0:00:54.7]} 43... Kc5 {[%clk 0:01:05.9]} 44. Rd2 {[%clk 0:00:54.4]} 44...
c3 {[%clk 0:01:05.9]} 45. Rd3 {[%clk 0:00:44.8]} 45... Rxh2 {[%clk 0:01:00.6]}
46. Rxc3+ {[%clk 0:00:44.8]} 46... Kd4 {[%clk 0:01:00.7]} 47. Rf3 {[%clk
0:00:42.5]} 47... Kxe4 {[%clk 0:00:57.8]} 48. Rxf6 {[%clk 0:00:42.4]} 48... Rg2
{[%clk 0:00:57.8]} 49. Kb5 {[%clk 0:00:40.5]} 49... Rxg4 {[%clk 0:00:57.5]} 50.
a4 {[%clk 0:00:40.8]} 50... Rg1 {[%clk 0:00:57.1]} 51. a5 {[%clk 0:00:40.8]}
51... g4 {[%clk 0:00:57.1]} 52. c4 {[%clk 0:00:35.5]} 52... g3 {[%clk
0:00:55.6]} 53. a6 {[%clk 0:00:34.3]} 53... Ra1 {[%clk 0:00:54.7]} 54. Rg6
{[%clk 0:00:33.7]} 54... Kf3 {[%clk 0:00:53.3]} 55. c5 {[%clk 0:00:33.6]} 55...
g2 {[%clk 0:00:52.2]} 56. c6 {[%clk 0:00:34]} 56... g1=Q {[%clk 0:00:48.3]} 57.
Rxg1 {[%clk 0:00:33.2]} 57... Rxg1 {[%clk 0:00:48.1]} 58. c7 {[%clk 0:00:32.6]}
58... Rg8 {[%clk 0:00:47.5]} 59. Nc6 {[%clk 0:00:33]} 59... e4 {[%clk
0:00:44.3]} 60. Nd8 {[%clk 0:00:29.4]} 60... Rg5+ {[%clk 0:00:44]} 61. Kb6
{[%clk 0:00:29.1]} 61... e3 {[%clk 0:00:37.8]} 62. c8=Q {[%clk 0:00:27.4]} 62...
e2 {[%clk 0:00:37.7]} 63. Qh3+ {[%clk 0:00:22.9]} 63... Rg3 {[%clk 0:00:36.8]}
64. Qf5+ {[%clk 0:00:21.4]} 64... Ke3 {[%clk 0:00:32.9]} 65. Qe5+ {[%clk
0:00:21.1]} 65... Kf2 {[%clk 0:00:32.8]} 66. a7 {[%clk 0:00:17]} 66... Rb3+
{[%clk 0:00:27.7]} 67. Kc5 {[%clk 0:00:14.8]} 67... Ra3 {[%clk 0:00:26.9]} 68.
Qf4+ {[%clk 0:00:15]} 68... Kg2 {[%clk 0:00:24]} 69. Qe4+ {[%clk 0:00:15.3]}
69... Kf2 {[%clk 0:00:23.5]} 70. Qf5+ {[%clk 0:00:14.6]} 70... Kg2 {[%clk
0:00:21.9]} 71. Qg5+ {[%clk 0:00:14.3]} 71... Kf2 {[%clk 0:00:21.3]} 72. Qh4+
{[%clk 0:00:14.2]} 72... Kg2 {[%clk 0:00:18.9]} 73. Qe1 {[%clk 0:00:12.1]} 73...
Kf3 {[%clk 0:00:17.1]} 74. Nc6 {[%clk 0:00:11]} 74... Rxa7 {[%clk 0:00:15]} 75.
Nxa7 {[%clk 0:00:10.4]} 75... Ke3 {[%clk 0:00:15.3]} 76. Nb5 {[%clk 0:00:10.6]}
76... Kd3 {[%clk 0:00:15.4]} 77. Nc3 {[%clk 0:00:09.9]} 77... Kc2 {[%clk
0:00:14.8]} 78. Qxe2+ {[%clk 0:00:09.9]} 1-0

[Event "*** Titled Tuesday Blitz"]
[Site "Chess.com"]
[Date "2020.04.07"]
[Round "1"]
[White "SmirnovTimofey2000"]
[Black "CzechmVIII"]
[Result "0-1"]
[WhiteElo "2521"]
[BlackElo "2227"]
[TimeControl "180+1"]
[EndTime "13:09:05 PDT"]
[Termination "CzechmVIII won on time"]

1. e4 {[%clk 0:02:54.7]} 1... c5 {[%clk 0:02:59.6]} 2. Nf3 {[%clk 0:02:51.3]}
2... d6 {[%clk 0:02:59.6]} 3. d4 {[%clk 0:02:48.1]} 3... cxd4 {[%clk 0:03:00.5]}
4. Nxd4 {[%clk 0:02:38]} 4... Nf6 {[%clk 0:03:00.5]} 5. Nc3 {[%clk 0:02:37.7]}
5... g6 {[%clk 0:03:00.6]} 6. Be3 {[%clk 0:02:35.6]} 6... Bg7 {[%clk 0:03:00.7]}
7. f3 {[%clk 0:02:35.5]} 7... Nc6 {[%clk 0:03:00.7]} 8. Qd2 {[%clk 0:02:35.4]}
8... O-O {[%clk 0:03:00.5]} 9. g4 {[%clk 0:02:35.2]} 9... Be6 {[%clk 0:02:59.4]}
10. Nxe6 {[%clk 0:02:34]} 10... fxe6 {[%clk 0:03:00.3]} 11. O-O-O {[%clk
0:02:33]} 11... Ne5 {[%clk 0:02:57.1]} 12. Be2 {[%clk 0:02:31.2]} 12... Qc8
{[%clk 0:02:57]} 13. Nb5 {[%clk 0:02:31.1]} 13... Nc4 {[%clk 0:02:52.9]} 14.
Bxc4 {[%clk 0:02:30.4]} 14... Qxc4 {[%clk 0:02:53.1]} 15. Nc3 {[%clk 0:02:25.5]}
15... Nd7 {[%clk 0:02:47.6]} 16. Qd3 {[%clk 0:02:23.8]} 16... Rac8 {[%clk
0:02:34]} 17. Bd4 {[%clk 0:02:20.6]} 17... Bxd4 {[%clk 0:02:15.2]} 18. Qxd4
{[%clk 0:02:20.5]} 18... Qxd4 {[%clk 0:02:15.2]} 19. Rxd4 {[%clk 0:02:20.5]}
19... Rxf3 {[%clk 0:02:15.4]} 20. h4 {[%clk 0:02:16.4]} 20... Ne5 {[%clk
0:02:13.4]} 21. h5 {[%clk 0:02:16.2]} 21... Nxg4 {[%clk 0:02:11.1]} 22. hxg6
{[%clk 0:02:15.3]} 22... hxg6 {[%clk 0:02:11.4]} 23. Rg1 {[%clk 0:02:15.3]}
23... Ne5 {[%clk 0:02:10.6]} 24. Rb4 {[%clk 0:02:15.3]} 24... b6 {[%clk
0:02:10.2]} 25. Ra4 {[%clk 0:02:15]} 25... a5 {[%clk 0:02:09.5]} 26. a3 {[%clk
0:02:12.9]} 26... Kg7 {[%clk 0:02:06]} 27. Rd4 {[%clk 0:02:12.1]} 27... Rc4
{[%clk 0:02:04.9]} 28. Rd2 {[%clk 0:02:10.1]} 28... Rfxc3 {[%clk 0:01:55]} 29.
bxc3 {[%clk 0:02:09.7]} 29... Rxe4 {[%clk 0:01:55]} 30. Rd4 {[%clk 0:02:06.7]}
30... Re2 {[%clk 0:01:50.4]} 31. Kb2 {[%clk 0:01:56.1]} 31... d5 {[%clk
0:01:47.7]} 32. Rb1 {[%clk 0:01:53.5]} 32... Nc4+ {[%clk 0:01:46.1]} 33. Kc1
{[%clk 0:01:46.5]} 33... Re1+ {[%clk 0:01:36.6]} 34. Rd1 {[%clk 0:01:46.3]}
34... Re3 {[%clk 0:01:36.6]} 35. Rd3 {[%clk 0:01:45.6]} 35... Re1+ {[%clk
0:01:33.4]} 36. Rd1 {[%clk 0:01:45.2]} 36... Re2 {[%clk 0:01:33.5]} 37. Rd3
{[%clk 0:01:44.7]} 37... g5 {[%clk 0:01:28.5]} 38. Rb5 {[%clk 0:01:33.9]} 38...
Kg6 {[%clk 0:01:21.2]} 39. Kd1 {[%clk 0:01:33]} 39... Rg2 {[%clk 0:01:17.1]} 40.
a4 {[%clk 0:01:31.6]} 40... g4 {[%clk 0:01:11.2]} 41. Rd4 {[%clk 0:01:31.4]}
41... Kg5 {[%clk 0:01:10.2]} 42. Rxc4 {[%clk 0:01:31.2]} 42... g3 {[%clk
0:01:07]} 43. Rc8 {[%clk 0:01:29.7]} 43... Rf2 {[%clk 0:00:59]} 44. Ke1 {[%clk
0:01:21.2]} 44... Rxc2 {[%clk 0:00:57.9]} 45. Rxb6 {[%clk 0:01:17.9]} 45... g2
{[%clk 0:00:49.5]} 46. Rg8+ {[%clk 0:01:16.4]} 46... Kf4 {[%clk 0:00:49.8]} 47.
Rxe6 {[%clk 0:01:11.8]} 47... Kf3 {[%clk 0:00:35.8]} 48. Rf8+ {[%clk 0:01:11.3]}
48... Kg3 {[%clk 0:00:33.6]} 49. Rg6+ {[%clk 0:01:11.4]} 49... Kh2 {[%clk
0:00:32.4]} 50. Rh8+ {[%clk 0:01:11.4]} 50... Kg1 {[%clk 0:00:32.7]} 51. Rf8
{[%clk 0:00:56.1]} 51... Rxc3 {[%clk 0:00:23.7]} 52. Kd2 {[%clk 0:00:52.9]}
52... Ra3 {[%clk 0:00:20.7]} 53. Rg4 {[%clk 0:00:42.8]} 53... Ra2+ {[%clk
0:00:19.6]} 54. Kc3 {[%clk 0:00:40.1]} 54... Rf2 {[%clk 0:00:18.3]} 55. Rfg8
{[%clk 0:00:35.7]} 55... e5 {[%clk 0:00:17.9]} 56. R8g5 {[%clk 0:00:33.5]} 56...
d4+ {[%clk 0:00:16.8]} 57. Kd3 {[%clk 0:00:30.9]} 57... Kf1 {[%clk 0:00:14.6]}
58. Rxe5 {[%clk 0:00:18.2]} 58... g1=Q {[%clk 0:00:12.2]} 59. Rxg1+ {[%clk
0:00:09.1]} 59... Kxg1 {[%clk 0:00:12.6]} 60. Rxa5 {[%clk 0:00:07.8]} 60... Rf4
{[%clk 0:00:06.3]} 61. Rd5 {[%clk 0:00:06.2]} 61... Rf3+ {[%clk 0:00:06.5]} 62.
Kxd4 {[%clk 0:00:05.3]} 62... Ra3 {[%clk 0:00:07]} 63. a5 {[%clk 0:00:05.6]}
63... Kf2 {[%clk 0:00:07.5]} 64. Re5 {[%clk 0:00:04.9]} 64... Kf3 {[%clk
0:00:07.2]} 65. Kc4 {[%clk 0:00:04.6]} 65... Kf4 {[%clk 0:00:06.9]} 66. Rd5
{[%clk 0:00:02.4]} 66... Ke4 {[%clk 0:00:06.1]} 0-1

[Event "*** Titled Tuesday Blitz"]
[Site "Chess.com"]
[Date "2020.04.07"]
[Round "1"]
[White "DDTerziev04"]
[Black "ZWISCHENZUGGED"]
[Result "1-0"]
[WhiteElo "2235"]
[BlackElo "2554"]
[TimeControl "180+1"]
[EndTime "13:09:12 PDT"]
[Termination "DDTerziev04 won by resignation"]

1. e4 {[%clk 0:03:00.9]} 1... c5 {[%clk 0:02:57.7]} 2. Nf3 {[%clk 0:02:59.3]}
2... e6 {[%clk 0:02:58.2]} 3. g3 {[%clk 0:02:57]} 3... d5 {[%clk 0:02:57.8]} 4.
exd5 {[%clk 0:02:56.4]} 4... exd5 {[%clk 0:02:58.7]} 5. d4 {[%clk 0:02:56.4]}
5... Nf6 {[%clk 0:02:58.8]} 6. Bg2 {[%clk 0:02:55.6]} 6... Be7 {[%clk
0:02:57.7]} 7. O-O {[%clk 0:02:55.1]} 7... O-O {[%clk 0:02:57.6]} 8. c3 {[%clk
0:02:53]} 8... Nc6 {[%clk 0:02:56.8]} 9. Bg5 {[%clk 0:02:49.9]} 9... Bg4 {[%clk
0:02:51.4]} 10. dxc5 {[%clk 0:02:40.7]} 10... Ne5 {[%clk 0:02:32.2]} 11. Nbd2
{[%clk 0:02:34.1]} 11... Bxc5 {[%clk 0:02:25.8]} 12. Qb3 {[%clk 0:02:16.1]}
12... Nxf3+ {[%clk 0:02:17.1]} 13. Nxf3 {[%clk 0:02:15.6]} 13... h6 {[%clk
0:02:02.4]} 14. Bxf6 {[%clk 0:02:14.7]} 14... Qxf6 {[%clk 0:02:03.3]} 15. Qxd5
{[%clk 0:02:10.3]} 15... b6 {[%clk 0:01:46.4]} 16. Qe5 {[%clk 0:02:01.6]} 16...
Rad8 {[%clk 0:01:36.1]} 17. Qxf6 {[%clk 0:02:00.2]} 17... gxf6 {[%clk 0:01:37]}
18. Rad1 {[%clk 0:01:56.6]} 18... Be6 {[%clk 0:01:30.2]} 19. b4 {[%clk
0:01:50.7]} 19... Be7 {[%clk 0:01:27.6]} 20. a3 {[%clk 0:01:21.4]} 20... Rc8
{[%clk 0:01:27.7]} 21. Rc1 {[%clk 0:01:15.4]} 21... Bc4 {[%clk 0:01:10.6]} 22.
Rfe1 {[%clk 0:01:14.2]} 22... Bd6 {[%clk 0:01:10.7]} 23. Bf1 {[%clk 0:01:08]}
23... Bd5 {[%clk 0:00:57.2]} 24. Red1 {[%clk 0:01:02.3]} 24... Bxf3 {[%clk
0:00:48.9]} 25. Rxd6 {[%clk 0:01:01.5]} 25... Kg7 {[%clk 0:00:48.9]} 26. c4
{[%clk 0:00:58.1]} 26... Rc7 {[%clk 0:00:48.7]} 27. Rc3 {[%clk 0:00:50.3]} 27...
Bb7 {[%clk 0:00:48.9]} 28. Rd4 {[%clk 0:00:33.8]} 28... Rfc8 {[%clk 0:00:46.2]}
29. Re3 {[%clk 0:00:30.9]} 29... Ba6 {[%clk 0:00:42.3]} 30. b5 {[%clk
0:00:30.7]} 30... Bb7 {[%clk 0:00:41.5]} 31. Re1 {[%clk 0:00:29.5]} 31... Bf3
{[%clk 0:00:27.9]} 32. Re3 {[%clk 0:00:28.7]} 32... Bb7 {[%clk 0:00:27.9]} 33.
Re1 {[%clk 0:00:27.8]} 33... Rc5 {[%clk 0:00:25.2]} 34. Red1 {[%clk 0:00:24.4]}
34... R8c7 {[%clk 0:00:23.3]} 35. Rd7 {[%clk 0:00:23.8]} 35... Be4 {[%clk
0:00:20.8]} 36. R1d4 {[%clk 0:00:21.9]} 36... Bf5 {[%clk 0:00:19.8]} 37. Rxc7
{[%clk 0:00:21.2]} 37... Rxc7 {[%clk 0:00:20.7]} 38. f4 {[%clk 0:00:20]} 38...
Be6 {[%clk 0:00:20.9]} 39. Kf2 {[%clk 0:00:20.1]} 39... Kf8 {[%clk 0:00:21.3]}
40. Ke3 {[%clk 0:00:20.5]} 40... Ke7 {[%clk 0:00:21.7]} 41. a4 {[%clk
0:00:19.8]} 41... Rc5 {[%clk 0:00:21.3]} 42. Kd2 {[%clk 0:00:19.5]} 42... h5
{[%clk 0:00:20.7]} 43. Kc3 {[%clk 0:00:18.9]} 43... h4 {[%clk 0:00:20.7]} 44.
Bd3 {[%clk 0:00:12.6]} 44... hxg3 {[%clk 0:00:20.5]} 45. hxg3 {[%clk 0:00:13.4]}
45... Rh5 {[%clk 0:00:20.6]} 46. Re4 {[%clk 0:00:13.5]} 46... f5 {[%clk
0:00:20]} 47. Re3 {[%clk 0:00:13.2]} 47... Kf6 {[%clk 0:00:19.7]} 48. Kd4 {[%clk
0:00:10.5]} 48... Rh8 {[%clk 0:00:20.3]} 49. Kc3 {[%clk 0:00:09.7]} 49... Rc8
{[%clk 0:00:20.5]} 50. Re2 {[%clk 0:00:09.1]} 50... Rg8 {[%clk 0:00:20.6]} 51.
Re3 {[%clk 0:00:08.6]} 51... Rd8 {[%clk 0:00:21.2]} 52. Re2 {[%clk 0:00:08.5]}
52... Rd7 {[%clk 0:00:19.1]} 53. Re3 {[%clk 0:00:08.3]} 53... Rc7 {[%clk
0:00:18.5]} 54. Re2 {[%clk 0:00:08.5]} 54... Kg6 {[%clk 0:00:17.5]} 55. Re5
{[%clk 0:00:08.4]} 55... Rc8 {[%clk 0:00:12.9]} 56. Re3 {[%clk 0:00:08.1]} 56...
Kh5 {[%clk 0:00:12.1]} 57. Be2+ {[%clk 0:00:07.2]} 57... Kh6 {[%clk 0:00:11.8]}
58. Bd3 {[%clk 0:00:07.2]} 58... Rg8 {[%clk 0:00:10.7]} 59. Kb4 {[%clk
0:00:06.1]} 59... Rc8 {[%clk 0:00:09.8]} 60. Kc3 {[%clk 0:00:06.2]} 60... Kg6
{[%clk 0:00:10.4]} 61. Re2 {[%clk 0:00:05.7]} 61... Kf6 {[%clk 0:00:10.8]} 62.
Re3 {[%clk 0:00:06.1]} 62... Rh8 {[%clk 0:00:10.7]} 63. Kb4 {[%clk 0:00:05.8]}
63... Rh1 {[%clk 0:00:10.8]} 64. c5 {[%clk 0:00:06.1]} 64... bxc5+ {[%clk
0:00:10.5]} 65. Kxc5 {[%clk 0:00:07]} 65... Rc1+ {[%clk 0:00:11.1]} 66. Kb4
{[%clk 0:00:07.1]} 66... Rd1 {[%clk 0:00:07.7]} 67. Bc2 {[%clk 0:00:06.8]} 67...
Rd4+ {[%clk 0:00:07.5]} 68. Kc3 {[%clk 0:00:07]} 68... Rd7 {[%clk 0:00:07.4]}
69. Kb4 {[%clk 0:00:07.1]} 69... Rc7 {[%clk 0:00:07.8]} 70. Bb3 {[%clk
0:00:06.9]} 70... Bxb3 {[%clk 0:00:07.1]} 71. Kxb3 {[%clk 0:00:07.8]} 71... Rc1
{[%clk 0:00:07.3]} 72. Kb4 {[%clk 0:00:07.6]} 72... Rb1+ {[%clk 0:00:07.7]} 73.
Ka5 {[%clk 0:00:08]} 73... Ra1 {[%clk 0:00:08.4]} 74. Rd3 {[%clk 0:00:08.4]}
74... Ra2 {[%clk 0:00:08.2]} 75. Rd4 {[%clk 0:00:08.5]} 75... Ke6 {[%clk
0:00:08.3]} 76. Ka6 {[%clk 0:00:08.9]} 76... Ra3 {[%clk 0:00:09.2]} 77. Kxa7
{[%clk 0:00:09.2]} 77... Rxg3 {[%clk 0:00:10.1]} 78. b6 {[%clk 0:00:09.5]} 78...
Rb3 {[%clk 0:00:10.3]} 79. b7 {[%clk 0:00:10]} 79... Ra3 {[%clk 0:00:09.9]} 80.
b8=Q {[%clk 0:00:09.9]} 1-0